[Event "*** Titled Tuesday 3|2 Blitz"]
[Site "Chess.com"]
[Date "2017.03.07"]
[Round "4"]
[White "alekroth64"]
[Black "GMCanty"]
[Result "1-0"]
[WhiteElo "2267"]
[BlackElo "2324"]
[TimeControl "180+2"]
[EndTime "13:55:19 PST"]
[Termination "alekroth64 won by resignation"]

1. d4 {[%clk 0:03:02]} 1... Nf6 {[%clk 0:03:00.3]} 2. c4 {[%clk 0:03:02.2]} 2...
c5 {[%clk 0:03:01.1]} 3. d5 {[%clk 0:03:02.3]} 3... d6 {[%clk 0:03:02.1]} 4. Nc3
{[%clk 0:03:02.3]} 4... e5 {[%clk 0:03:03.3]} 5. e4 {[%clk 0:03:02]} 5... g6
{[%clk 0:03:03.8]} 6. f3 {[%clk 0:03:00.2]} 6... Bg7 {[%clk 0:03:04.1]} 7. Be3
{[%clk 0:03:00.9]} 7... O-O {[%clk 0:03:04.9]} 8. Qd2 {[%clk 0:03:01.5]} 8...
Ne8 {[%clk 0:02:58.8]} 9. Bd3 {[%clk 0:03:01.5]} 9... f5 {[%clk 0:02:59.9]} 10.
Nge2 {[%clk 0:03:03]} 10... f4 {[%clk 0:03:00.6]} 11. Bf2 {[%clk 0:03:04]} 11...
Nf6 {[%clk 0:02:55.6]} 12. O-O-O {[%clk 0:03:03.9]} 12... a6 {[%clk 0:02:55.9]}
13. Kb1 {[%clk 0:03:03.7]} 13... Bd7 {[%clk 0:02:54]} 14. Nc1 {[%clk 0:02:58.8]}
14... Qe8 {[%clk 0:02:54.6]} 15. Qe2 {[%clk 0:02:55.7]} 15... b5 {[%clk
0:02:31.7]} 16. cxb5 {[%clk 0:02:54.9]} 16... axb5 {[%clk 0:02:33.6]} 17. Bxb5
{[%clk 0:02:55.7]} 17... Rf7 {[%clk 0:01:56.7]} 18. a4 {[%clk 0:02:40]} 18...
Bf8 {[%clk 0:01:55.8]} 19. Nb3 {[%clk 0:02:31.8]} 19... Qc8 {[%clk 0:01:49.6]}
20. Nd2 {[%clk 0:02:30.5]} 20... Qc7 {[%clk 0:01:37.2]} 21. Nc4 {[%clk
0:02:28.9]} 21... Na6 {[%clk 0:01:26.4]} 22. Bxa6 {[%clk 0:02:22.8]} 22... Rxa6
{[%clk 0:01:28.3]} 23. Nxe5 {[%clk 0:02:23.5]} 23... Rb6 {[%clk 0:01:12.6]} 24.
Nxf7 {[%clk 0:02:19]} 24... Kxf7 {[%clk 0:01:14.5]} 25. Rhe1 {[%clk 0:02:00.2]}
25... Qb8 {[%clk 0:00:54.1]} 26. Rd2 {[%clk 0:01:44.1]} 26... Ne8 {[%clk
0:00:43.7]} 27. e5 {[%clk 0:01:39.9]} 27... Bf5+ {[%clk 0:00:42.3]} 28. Kc1
{[%clk 0:01:35.6]} 28... Bg7 {[%clk 0:00:27.4]} 29. exd6 {[%clk 0:01:14.5]}
29... Bxc3 {[%clk 0:00:20.6]} 30. Qe7+ {[%clk 0:01:11.8]} 30... Kg8 {[%clk
0:00:21.8]} 31. Qxe8+ {[%clk 0:01:10.8]} 31... Qxe8 {[%clk 0:00:23.7]} 32. Rxe8+
{[%clk 0:01:10.5]} 32... Kf7 {[%clk 0:00:25.6]} 33. Re7+ {[%clk 0:01:04.7]}
33... Kf6 {[%clk 0:00:26.7]} 34. Bxc5 {[%clk 0:00:57.2]} 34... Bxd2+ {[%clk
0:00:25.3]} 35. Kxd2 {[%clk 0:00:58.2]} 35... Rxb2+ {[%clk 0:00:27.2]} 36. Kc3
{[%clk 0:00:59.3]} 36... Rc2+ {[%clk 0:00:28.4]} 37. Kb4 {[%clk 0:00:59.9]}
37... Rxg2 {[%clk 0:00:21.4]} 38. h4 {[%clk 0:00:57.1]} 38... g5 {[%clk
0:00:15.7]} 39. Bd4+ {[%clk 0:00:50.6]} 39... Kg6 {[%clk 0:00:16.8]} 40. d7
{[%clk 0:00:45.1]} 40... Bxd7 {[%clk 0:00:09.7]} 41. Rxd7 {[%clk 0:00:47]} 41...
h6 {[%clk 0:00:10.6]} 42. hxg5 {[%clk 0:00:41.3]} 42... hxg5 {[%clk 0:00:12.5]}
43. Rg7+ {[%clk 0:00:41.8]} 43... Kf5 {[%clk 0:00:13.6]} 44. d6 {[%clk
0:00:40.7]} 44... Ke6 {[%clk 0:00:13.2]} 45. d7 {[%clk 0:00:38.8]} 1-0

[Event "*** Titled Tuesday 3|2 Blitz"]
[Site "Chess.com"]
[Date "2017.03.07"]
[Round "4"]
[White "DryCounty"]
[Black "PlotnikovPavel"]
[Result "0-1"]
[WhiteElo "2506"]
[BlackElo "2321"]
[TimeControl "180+2"]
[EndTime "13:55:21 PST"]
[Termination "PlotnikovPavel won by resignation"]

1. Nf3 {[%clk 0:03:02]} 1... e6 {[%clk 0:03:00.5]} 2. e4 {[%clk 0:03:00.3]} 2...
d5 {[%clk 0:03:01]} 3. exd5 {[%clk 0:03:01.2]} 3... exd5 {[%clk 0:03:02]} 4. d4
{[%clk 0:03:02.7]} 4... Bd6 {[%clk 0:03:03]} 5. c4 {[%clk 0:03:02.9]} 5... c6
{[%clk 0:02:59.2]} 6. Nc3 {[%clk 0:03:03.2]} 6... Ne7 {[%clk 0:02:59]} 7. Bd3
{[%clk 0:03:03.1]} 7... O-O {[%clk 0:02:50]} 8. O-O {[%clk 0:03:02.9]} 8... Bf5
{[%clk 0:02:45]} 9. Bxf5 {[%clk 0:03:02.1]} 9... Nxf5 {[%clk 0:02:45.7]} 10.
cxd5 {[%clk 0:03:00.1]} 10... cxd5 {[%clk 0:02:46.3]} 11. Bg5 {[%clk 0:02:41.5]}
11... Qa5 {[%clk 0:02:41.4]} 12. Qd3 {[%clk 0:02:36.6]} 12... g6 {[%clk
0:02:31.7]} 13. Rfe1 {[%clk 0:02:32.4]} 13... Nc6 {[%clk 0:02:31.8]} 14. Bf6
{[%clk 0:02:27.8]} 14... Rfe8 {[%clk 0:02:30.7]} 15. g3 {[%clk 0:02:25]} 15...
Nb4 {[%clk 0:02:26.4]} 16. Qd2 {[%clk 0:02:21.9]} 16... Bf8 {[%clk 0:02:22.9]}
17. Kg2 {[%clk 0:01:49.1]} 17... Bh6 {[%clk 0:02:18.4]} 18. Bg5 {[%clk
0:01:37.2]} 18... Bg7 {[%clk 0:02:18.7]} 19. Rxe8+ {[%clk 0:01:20.9]} 19... Rxe8
{[%clk 0:02:18.7]} 20. Re1 {[%clk 0:01:22.4]} 20... Rc8 {[%clk 0:02:01.6]} 21.
Bf4 {[%clk 0:01:06]} 21... Nc6 {[%clk 0:01:58.8]} 22. Be5 {[%clk 0:01:02.2]}
22... Nxe5 {[%clk 0:01:53.4]} 23. dxe5 {[%clk 0:01:03]} 23... d4 {[%clk
0:01:52.9]} 24. Ne4 {[%clk 0:01:02.5]} 24... Qxd2 {[%clk 0:01:48.8]} 25. Nexd2
{[%clk 0:01:03.4]} 25... Rc2 {[%clk 0:01:48.9]} 26. g4 {[%clk 0:00:51.3]} 26...
Nh4+ {[%clk 0:01:46.6]} 27. Kg3 {[%clk 0:00:43.7]} 27... Nxf3 {[%clk 0:01:42.7]}
28. Nxf3 {[%clk 0:00:45.6]} 28... Rxb2 {[%clk 0:01:42.8]} 29. Nxd4 {[%clk
0:00:45.2]} 29... Rxa2 {[%clk 0:01:44]} 30. Nb5 {[%clk 0:00:46.3]} 30... Ra5
{[%clk 0:01:39.7]} 31. Rb1 {[%clk 0:00:31.9]} 31... a6 {[%clk 0:01:39.5]} 32.
Na7 {[%clk 0:00:32.3]} 32... Bxe5+ {[%clk 0:01:29.2]} 33. f4 {[%clk 0:00:33.3]}
33... Ra3+ {[%clk 0:01:30]} 34. Kg2 {[%clk 0:00:34.2]} 34... Bxf4 {[%clk
0:01:30.5]} 35. Rxb7 {[%clk 0:00:34.8]} 35... Ra2+ {[%clk 0:01:31.4]} 36. Kf3
{[%clk 0:00:35.8]} 36... Bxh2 {[%clk 0:01:31.4]} 37. Nc6 {[%clk 0:00:37.3]}
37... Kg7 {[%clk 0:01:30.3]} 38. Nd8 {[%clk 0:00:37.4]} 38... Rc2 {[%clk
0:01:09.5]} 39. Nxf7 {[%clk 0:00:32.5]} 39... Rc7 {[%clk 0:01:08.7]} 40. Rxc7
{[%clk 0:00:31.9]} 40... Bxc7 {[%clk 0:01:10.6]} 41. Ng5 {[%clk 0:00:33.1]}
41... Kg8 {[%clk 0:01:08.8]} 42. Ne6 {[%clk 0:00:31.6]} 42... Bd6 {[%clk
0:01:08.4]} 43. Ke4 {[%clk 0:00:31.5]} 43... a5 {[%clk 0:01:09.5]} 44. Kd5
{[%clk 0:00:32.2]} 44... Be7 {[%clk 0:01:10.5]} 45. Kc4 {[%clk 0:00:31.4]} 45...
a4 {[%clk 0:01:11.7]} 46. Nd4 {[%clk 0:00:30.8]} 46... a3 {[%clk 0:01:12.2]} 47.
Kb3 {[%clk 0:00:32.1]} 47... Kf7 {[%clk 0:01:11.9]} 48. Nf3 {[%clk 0:00:32.8]}
48... Kf6 {[%clk 0:01:12.5]} 49. Ka2 {[%clk 0:00:32.2]} 49... h5 {[%clk
0:01:11.9]} 50. gxh5 {[%clk 0:00:33.2]} 50... gxh5 {[%clk 0:01:13.8]} 51. Kb3
{[%clk 0:00:33.8]} 51... Kf5 {[%clk 0:01:14.7]} 52. Nd4+ {[%clk 0:00:34.8]}
52... Ke4 {[%clk 0:01:14.7]} 53. Ne2 {[%clk 0:00:34.5]} 53... h4 {[%clk
0:01:14.3]} 54. Ng1 {[%clk 0:00:35.7]} 54... Kf4 {[%clk 0:01:14.3]} 55. Kc2
{[%clk 0:00:35.7]} 55... Kg4 {[%clk 0:01:14.1]} 56. Kb3 {[%clk 0:00:35.1]} 56...
h3 {[%clk 0:01:15.3]} 0-1

[Event "*** Titled Tuesday 3|2 Blitz"]
[Site "Chess.com"]
[Date "2017.03.07"]
[Round "4"]
[White "LuckyTiger"]
[Black "Rating-Schmating"]
[Result "1-0"]
[WhiteElo "2479"]
[BlackElo "2272"]
[TimeControl "180+2"]
[EndTime "13:55:21 PST"]
[Termination "LuckyTiger won by checkmate"]

1. e4 {[%clk 0:03:01.9]} 1... e6 {[%clk 0:03:00.8]} 2. d4 {[%clk 0:03:02.8]}
2... d5 {[%clk 0:03:01.6]} 3. Nc3 {[%clk 0:03:04.4]} 3... Bb4 {[%clk 0:03:01.4]}
4. Bd3 {[%clk 0:03:05.6]} 4... dxe4 {[%clk 0:03:01.4]} 5. Bxe4 {[%clk
0:03:07.5]} 5... Nf6 {[%clk 0:03:02.5]} 6. Bf3 {[%clk 0:03:08.6]} 6... c5 {[%clk
0:03:02.5]} 7. a3 {[%clk 0:03:07.4]} 7... Ba5 {[%clk 0:02:54.5]} 8. dxc5 {[%clk
0:03:04.9]} 8... Qxd1+ {[%clk 0:02:54.3]} 9. Bxd1 {[%clk 0:03:06.8]} 9... Bxc3+
{[%clk 0:02:36.9]} 10. bxc3 {[%clk 0:03:08.7]} 10... Ne4 {[%clk 0:02:37.9]} 11.
Be3 {[%clk 0:03:06.6]} 11... Nxc3 {[%clk 0:02:38.1]} 12. Bf3 {[%clk 0:03:08]}
12... Nd5 {[%clk 0:02:35.5]} 13. Bd2 {[%clk 0:03:04.7]} 13... Nc6 {[%clk
0:02:34.3]} 14. c4 {[%clk 0:03:03.9]} 14... Nf6 {[%clk 0:02:33.1]} 15. Bc3
{[%clk 0:03:04.2]} 15... O-O {[%clk 0:02:30.5]} 16. Bxf6 {[%clk 0:02:49.3]}
16... gxf6 {[%clk 0:02:30]} 17. Bxc6 {[%clk 0:02:50.9]} 17... bxc6 {[%clk
0:02:29.7]} 18. Kd2 {[%clk 0:02:52.1]} 18... e5 {[%clk 0:02:14.6]} 19. Ne2
{[%clk 0:02:53]} 19... Be6 {[%clk 0:02:14.8]} 20. Kc3 {[%clk 0:02:53.4]} 20...
Rfd8 {[%clk 0:02:15.8]} 21. Rhd1 {[%clk 0:02:46]} 21... Kf8 {[%clk 0:02:14.5]}
22. Ng3 {[%clk 0:02:40.3]} 22... f5 {[%clk 0:02:10.9]} 23. f4 {[%clk 0:02:40.6]}
23... f6 {[%clk 0:02:04.9]} 24. Re1 {[%clk 0:02:09.4]} 24... Rd4 {[%clk
0:02:02.6]} 25. fxe5 {[%clk 0:00:59.6]} 25... Rxc4+ {[%clk 0:02:01.8]} 26. Kd3
{[%clk 0:01:00.8]} 26... Rxc5 {[%clk 0:02:00.4]} 27. exf6 {[%clk 0:00:57.2]}
27... Kf7 {[%clk 0:02:01.7]} 28. Rac1 {[%clk 0:00:54.3]} 28... Rd8+ {[%clk
0:02:00.9]} 29. Ke3 {[%clk 0:00:55.1]} 29... Rdd5 {[%clk 0:01:49.4]} 30. Nh5
{[%clk 0:00:49.1]} 30... Re5+ {[%clk 0:01:29.6]} 31. Kf2 {[%clk 0:00:49.9]}
31... Rxc1 {[%clk 0:01:19.7]} 32. Rxc1 {[%clk 0:00:51.8]} 32... c5 {[%clk
0:01:20.3]} 33. Rb1 {[%clk 0:00:52.4]} 33... Kg6 {[%clk 0:01:17.9]} 34. Nf4+
{[%clk 0:00:44.3]} 34... Kxf6 {[%clk 0:01:18.9]} 35. Rb7 {[%clk 0:00:45.8]}
35... Re4 {[%clk 0:01:14]} 36. g3 {[%clk 0:00:35.8]} 36... Ra4 {[%clk
0:01:06.5]} 37. Rxh7 {[%clk 0:00:34.3]} 37... Bf7 {[%clk 0:01:04.7]} 38. Rh8
{[%clk 0:00:14.3]} 38... Rxa3 {[%clk 0:01:03.7]} 39. h4 {[%clk 0:00:15.3]} 39...
c4 {[%clk 0:01:03.6]} 40. Rc8 {[%clk 0:00:13.3]} 40... c3 {[%clk 0:01:04.4]} 41.
Rc5 {[%clk 0:00:12.5]} 41... Ra2+ {[%clk 0:01:04.8]} 42. Ke3 {[%clk 0:00:13.2]}
42... c2 {[%clk 0:01:03.5]} 43. h5 {[%clk 0:00:12.4]} 43... Ra3+ {[%clk
0:01:01.2]} 44. Kf2 {[%clk 0:00:12.2]} 44... Kg5 {[%clk 0:00:53.6]} 45. Rc6
{[%clk 0:00:11.3]} 45... Bxh5 {[%clk 0:00:50.2]} 46. Nh3+ {[%clk 0:00:12.1]}
46... Kg4 {[%clk 0:00:47.6]} 47. Rc4+ {[%clk 0:00:13.6]} 47... Kxh3 {[%clk
0:00:38.4]} 48. Rh4# {[%clk 0:00:13.5]} 1-0

[Event "*** Titled Tuesday 3|2 Blitz"]
[Site "Chess.com"]
[Date "2017.03.07"]
[Round "4"]
[White "vpantev"]
[Black "Mepetmepe"]
[Result "1-0"]
[WhiteElo "2455"]
[BlackElo "2331"]
[TimeControl "180+2"]
[EndTime "13:55:22 PST"]
[Termination "vpantev won on time"]

1. d4 {[%clk 0:03:01.6]} 1... Nf6 {[%clk 0:03:00.4]} 2. Nf3 {[%clk 0:03:01.5]}
2... d5 {[%clk 0:03:00.8]} 3. c4 {[%clk 0:03:02.1]} 3... e6 {[%clk 0:03:00.2]}
4. g3 {[%clk 0:03:02.6]} 4... Bb4+ {[%clk 0:02:58.9]} 5. Bd2 {[%clk 0:03:00.6]}
5... Bd6 {[%clk 0:03:00.3]} 6. Qc2 {[%clk 0:02:59.5]} 6... c6 {[%clk 0:03:01.1]}
7. Bg2 {[%clk 0:02:57.7]} 7... O-O {[%clk 0:03:01.8]} 8. O-O {[%clk 0:02:58.7]}
8... Nbd7 {[%clk 0:03:03.1]} 9. Nc3 {[%clk 0:02:58.6]} 9... b6 {[%clk
0:03:04.2]} 10. e4 {[%clk 0:02:59.3]} 10... Be7 {[%clk 0:03:05.1]} 11. e5 {[%clk
0:02:22.4]} 11... Ne8 {[%clk 0:03:06.1]} 12. Nxd5 {[%clk 0:02:22.9]} 12... cxd5
{[%clk 0:03:08]} 13. cxd5 {[%clk 0:02:22.4]} 13... exd5 {[%clk 0:03:06.9]} 14.
h4 {[%clk 0:02:23.1]} 14... Ba6 {[%clk 0:03:05.8]} 15. Rfe1 {[%clk 0:02:22.6]}
15... Nc7 {[%clk 0:03:05.6]} 16. Ng5 {[%clk 0:02:22.4]} 16... g6 {[%clk
0:02:41.1]} 17. Rac1 {[%clk 0:02:12.4]} 17... Rc8 {[%clk 0:02:38.4]} 18. Qa4
{[%clk 0:02:09.1]} 18... b5 {[%clk 0:02:10.3]} 19. Qa5 {[%clk 0:02:06.9]} 19...
Nb6 {[%clk 0:02:10.4]} 20. Rxc7 {[%clk 0:02:01.3]} 20... Qxc7 {[%clk 0:02:11.6]}
21. Qxa6 {[%clk 0:02:02.6]} 21... Nc4 {[%clk 0:02:01.5]} 22. Bc1 {[%clk
0:01:53.5]} 22... Qb6 {[%clk 0:02:00.8]} 23. Qxb6 {[%clk 0:01:52]} 23... Nxb6
{[%clk 0:02:00.7]} 24. Bf1 {[%clk 0:01:49.7]} 24... a6 {[%clk 0:01:59.2]} 25.
Bd3 {[%clk 0:01:48.7]} 25... Rc7 {[%clk 0:01:51.1]} 26. Bf4 {[%clk 0:01:48.2]}
26... Rc6 {[%clk 0:01:36.8]} 27. Kg2 {[%clk 0:01:45.4]} 27... Rfc8 {[%clk
0:01:30.5]} 28. Nf3 {[%clk 0:01:45.6]} 28... Nd7 {[%clk 0:01:29.4]} 29. h5
{[%clk 0:01:41.7]} 29... Nf8 {[%clk 0:01:29.3]} 30. Be3 {[%clk 0:01:36.5]} 30...
Ne6 {[%clk 0:01:29.9]} 31. Rh1 {[%clk 0:01:28.8]} 31... b4 {[%clk 0:01:27.6]}
32. Nh2 {[%clk 0:01:16.6]} 32... Kf8 {[%clk 0:01:13.3]} 33. Ng4 {[%clk
0:01:15.8]} 33... Ke8 {[%clk 0:01:12.2]} 34. hxg6 {[%clk 0:01:15.4]} 34... hxg6
{[%clk 0:01:12.2]} 35. Rh7 {[%clk 0:01:15.8]} 35... b3 {[%clk 0:00:47.1]} 36.
axb3 {[%clk 0:01:13.8]} 36... Rb8 {[%clk 0:00:43.2]} 37. Rh8+ {[%clk 0:01:13.5]}
37... Nf8 {[%clk 0:00:43.9]} 38. Bh6 {[%clk 0:01:10.5]} 38... Kd7 {[%clk
0:00:41.4]} 39. Nf6+ {[%clk 0:00:53.4]} 39... Kc7 {[%clk 0:00:42.4]} 40. Nxd5+
{[%clk 0:00:53.5]} 40... Kd7 {[%clk 0:00:42.4]} 41. Nxe7 {[%clk 0:00:50]} 41...
Kxe7 {[%clk 0:00:43.7]} 42. Bc4 {[%clk 0:00:49.8]} 42... Nd7 {[%clk 0:00:38.2]}
43. Bg5+ {[%clk 0:00:47.4]} 43... f6 {[%clk 0:00:39.4]} 44. exf6+ {[%clk
0:00:48.5]} 44... Rxf6 {[%clk 0:00:29.3]} 45. Rh7+ {[%clk 0:00:48.1]} 1-0

[Event "*** Titled Tuesday 3|2 Blitz"]
[Site "Chess.com"]
[Date "2017.03.07"]
[Round "4"]
[White "Jahonas"]
[Black "Schemato"]
[Result "1-0"]
[WhiteElo "2176"]
[BlackElo "2273"]
[TimeControl "180+2"]
[EndTime "13:55:27 PST"]
[Termination "Jahonas won by resignation"]

1. d4 {[%clk 0:02:26.7]} 1... e6 {[%clk 0:02:59.7]} 2. c4 {[%clk 0:02:23.5]}
2... f5 {[%clk 0:03:00.6]} 3. Nf3 {[%clk 0:02:23.7]} 3... Nf6 {[%clk 0:03:01.7]}
4. g3 {[%clk 0:02:23.5]} 4... c6 {[%clk 0:03:02.4]} 5. Bg2 {[%clk 0:02:24.7]}
5... d5 {[%clk 0:03:04]} 6. O-O {[%clk 0:02:25.6]} 6... Bd6 {[%clk 0:03:05.6]}
7. b3 {[%clk 0:02:26.6]} 7... Qe7 {[%clk 0:03:06.9]} 8. Bb2 {[%clk 0:02:27.9]}
8... O-O {[%clk 0:03:08.2]} 9. Nc3 {[%clk 0:02:29]} 9... Nbd7 {[%clk 0:03:09.3]}
10. e3 {[%clk 0:02:29.9]} 10... b6 {[%clk 0:03:10.4]} 11. cxd5 {[%clk
0:02:30.6]} 11... cxd5 {[%clk 0:03:09.2]} 12. Nb5 {[%clk 0:02:30]} 12... Ba6
{[%clk 0:03:02.2]} 13. a4 {[%clk 0:02:26.9]} 13... Rfc8 {[%clk 0:02:51.6]} 14.
Qd3 {[%clk 0:02:26.8]} 14... Rc6 {[%clk 0:02:45]} 15. Rfc1 {[%clk 0:02:23.9]}
15... Rac8 {[%clk 0:02:45.1]} 16. Nd2 {[%clk 0:02:21.2]} 16... Ne4 {[%clk
0:02:39.6]} 17. Nxe4 {[%clk 0:02:19.6]} 17... fxe4 {[%clk 0:02:39.8]} 18. Qe2
{[%clk 0:02:19.6]} 18... Bb4 {[%clk 0:02:26.6]} 19. Rxc6 {[%clk 0:02:19]} 19...
Rxc6 {[%clk 0:02:27.1]} 20. Rc1 {[%clk 0:02:20.2]} 20... Rxc1+ {[%clk
0:02:25.3]} 21. Bxc1 {[%clk 0:02:20.6]} 21... Nf8 {[%clk 0:02:20.5]} 22. Qc2
{[%clk 0:02:18]} 22... Qd7 {[%clk 0:02:15.3]} 23. Bf1 {[%clk 0:02:17.6]} 23...
h6 {[%clk 0:02:06.3]} 24. Bd2 {[%clk 0:02:14.6]} 24... Be7 {[%clk 0:02:04.3]}
25. h4 {[%clk 0:02:05]} 25... Qb7 {[%clk 0:01:48.2]} 26. Qc7 {[%clk 0:01:58.5]}
26... Qxc7 {[%clk 0:01:47.9]} 27. Nxc7 {[%clk 0:01:58]} 27... Bc8 {[%clk
0:01:49.5]} 28. Nb5 {[%clk 0:01:54.1]} 28... a5 {[%clk 0:01:45.6]} 29. Na7
{[%clk 0:01:40]} 29... Bd7 {[%clk 0:01:44.5]} 30. Bb5 {[%clk 0:01:40]} 30... Kf7
{[%clk 0:01:43.4]} 31. Nc6 {[%clk 0:01:30.9]} 31... Bf6 {[%clk 0:01:36.4]} 32.
b4 {[%clk 0:01:30.4]} 32... axb4 {[%clk 0:01:33.7]} 33. Bxb4 {[%clk 0:01:30.8]}
33... Ke8 {[%clk 0:01:27.8]} 34. Kg2 {[%clk 0:01:23.6]} 34... Ng6 {[%clk
0:01:28.3]} 35. f3 {[%clk 0:01:20.9]} 35... exf3+ {[%clk 0:01:28.1]} 36. Kxf3
{[%clk 0:01:21.4]} 36... Ne7 {[%clk 0:01:29.6]} 37. Nxe7 {[%clk 0:01:17.8]}
37... Bxe7 {[%clk 0:01:25.8]} 38. Bxe7 {[%clk 0:01:17.3]} 38... Bxb5 {[%clk
0:01:14.2]} 39. axb5 {[%clk 0:01:13.3]} 39... Kxe7 {[%clk 0:01:15.5]} 40. Kf4
{[%clk 0:01:11.6]} 40... Kf6 {[%clk 0:01:13.2]} 41. h5 {[%clk 0:01:12.7]} 41...
Kf7 {[%clk 0:01:10]} 42. Ke5 {[%clk 0:01:12.7]} 42... Ke7 {[%clk 0:01:11.2]} 43.
e4 {[%clk 0:01:11.8]} 43... dxe4 {[%clk 0:01:11.6]} 44. Kxe4 {[%clk 0:01:13.1]}
44... Kd6 {[%clk 0:01:06.9]} 45. g4 {[%clk 0:01:12.9]} 45... Kd7 {[%clk
0:01:07.4]} 46. Ke5 {[%clk 0:01:14.1]} 46... Ke7 {[%clk 0:01:08.2]} 47. d5
{[%clk 0:01:10.6]} 47... exd5 {[%clk 0:01:09.1]} 48. Kxd5 {[%clk 0:01:12.5]}
48... Kd7 {[%clk 0:01:10.6]} 49. Ke5 {[%clk 0:01:13.6]} 49... Ke7 {[%clk
0:01:12]} 50. Kf5 {[%clk 0:01:14.8]} 50... Kf7 {[%clk 0:01:05.3]} 51. g5 {[%clk
0:01:12]} 51... hxg5 {[%clk 0:00:52.2]} 52. Kxg5 {[%clk 0:01:11.4]} 52... Kf8
{[%clk 0:00:52.1]} 53. Kf4 {[%clk 0:00:58.1]} 53... Kg8 {[%clk 0:00:36.8]} 54.
Ke5 {[%clk 0:00:40.9]} 54... Kh7 {[%clk 0:00:37.9]} 55. Kd6 {[%clk 0:00:42]}
55... Kh6 {[%clk 0:00:39.3]} 56. Kc6 {[%clk 0:00:43.3]} 56... Kxh5 {[%clk
0:00:40.9]} 57. Kxb6 {[%clk 0:00:44.7]} 57... g5 {[%clk 0:00:42.8]} 58. Kc7
{[%clk 0:00:46.1]} 58... g4 {[%clk 0:00:44.7]} 59. b6 {[%clk 0:00:47.6]} 59...
g3 {[%clk 0:00:46.6]} 60. b7 {[%clk 0:00:49.1]} 60... g2 {[%clk 0:00:48.5]} 61.
b8=Q {[%clk 0:00:50.7]} 61... g1=Q {[%clk 0:00:50.4]} 62. Qh8+ {[%clk
0:00:51.5]} 1-0

[Event "*** Titled Tuesday 3|2 Blitz"]
[Site "Chess.com"]
[Date "2017.03.07"]
[Round "4"]
[White "aa175"]
[Black "rithwik2002"]
[Result "0-1"]
[WhiteElo "1847"]
[BlackElo "1798"]
[TimeControl "180+2"]
[EndTime "13:55:34 PST"]
[Termination "rithwik2002 won by checkmate"]

1. e4 {[%clk 0:03:02]} 1... e6 {[%clk 0:03:00.3]} 2. Nf3 {[%clk 0:03:03]} 2...
d5 {[%clk 0:03:00.3]} 3. exd5 {[%clk 0:03:03.6]} 3... exd5 {[%clk 0:03:02.2]} 4.
d4 {[%clk 0:03:04.7]} 4... Nf6 {[%clk 0:03:00.1]} 5. Be2 {[%clk 0:03:06]} 5...
Be7 {[%clk 0:02:56.9]} 6. O-O {[%clk 0:03:07.2]} 6... O-O {[%clk 0:02:58.8]} 7.
Bg5 {[%clk 0:03:06.4]} 7... Nbd7 {[%clk 0:02:57.2]} 8. c4 {[%clk 0:03:03.8]}
8... h6 {[%clk 0:02:54.3]} 9. Bh4 {[%clk 0:02:58.4]} 9... dxc4 {[%clk
0:02:45.6]} 10. Bxc4 {[%clk 0:02:58.7]} 10... Nb6 {[%clk 0:02:46.4]} 11. Bb3
{[%clk 0:02:58.8]} 11... a5 {[%clk 0:02:44.7]} 12. Nc3 {[%clk 0:02:58.8]} 12...
c6 {[%clk 0:02:40.5]} 13. Ne5 {[%clk 0:02:59.6]} 13... Nfd7 {[%clk 0:02:19.1]}
14. Bxe7 {[%clk 0:02:51.5]} 14... Qxe7 {[%clk 0:02:21]} 15. Ng6 {[%clk
0:02:51.9]} 15... Qd6 {[%clk 0:02:11.8]} 16. Nxf8 {[%clk 0:02:53.8]} 16... Kxf8
{[%clk 0:02:10.6]} 17. Qf3 {[%clk 0:02:52.7]} 17... Nf6 {[%clk 0:02:08.3]} 18.
Rad1 {[%clk 0:02:45.1]} 18... a4 {[%clk 0:01:59.6]} 19. Ne4 {[%clk 0:02:30.1]}
19... Qd8 {[%clk 0:01:34.6]} 20. Nxf6 {[%clk 0:02:28.5]} 20... axb3 {[%clk
0:01:33]} 21. Ne4 {[%clk 0:02:24.5]} 21... bxa2 {[%clk 0:01:28.3]} 22. Qb3
{[%clk 0:02:20.2]} 22... Be6 {[%clk 0:01:19.3]} 23. Qe3 {[%clk 0:02:13.7]} 23...
Nc4 {[%clk 0:01:00.6]} 24. Qb3 {[%clk 0:02:07.3]} 24... Nb6 {[%clk 0:00:49.3]}
25. Qb4+ {[%clk 0:02:04.3]} 25... Kg8 {[%clk 0:00:49.3]} 26. Nc5 {[%clk
0:02:05]} 26... Bc4 {[%clk 0:00:47.2]} 27. Rfe1 {[%clk 0:01:59.3]} 27... Bd5
{[%clk 0:00:38.6]} 28. Nxb7 {[%clk 0:01:53]} 28... Qg5 {[%clk 0:00:38.4]} 29. g3
{[%clk 0:01:47]} 29... Nd7 {[%clk 0:00:21.3]} 30. Nc5 {[%clk 0:01:41.7]} 30...
Nxc5 {[%clk 0:00:21.2]} 31. dxc5 {[%clk 0:01:36.5]} 31... Qh5 {[%clk 0:00:20.5]}
32. f4 {[%clk 0:01:06.6]} 32... Qf3 {[%clk 0:00:17]} 33. Qd2 {[%clk 0:01:04.8]}
33... Qh1+ {[%clk 0:00:16.7]} 34. Kf2 {[%clk 0:01:04.7]} 34... Qf3+ {[%clk
0:00:18.1]} 35. Kg1 {[%clk 0:01:05.2]} 35... Qh1+ {[%clk 0:00:19]} 36. Kf2
{[%clk 0:01:05.3]} 36... Qxh2+ {[%clk 0:00:20.1]} 37. Kf1 {[%clk 0:01:04.7]}
37... Qh1+ {[%clk 0:00:20.5]} 38. Kf2 {[%clk 0:01:05.1]} 38... Qf3+ {[%clk
0:00:22.1]} 39. Kg1 {[%clk 0:01:04.2]} 39... Qxg3+ {[%clk 0:00:22.8]} 40. Kf1
{[%clk 0:01:05.8]} 40... Qf3+ {[%clk 0:00:22.6]} 41. Kg1 {[%clk 0:01:06.1]}
41... Qh1+ {[%clk 0:00:11.3]} 42. Kf2 {[%clk 0:01:07.1]} 42... Qh2+ {[%clk
0:00:12.3]} 43. Kf1 {[%clk 0:01:06.7]} 43... Qh3+ {[%clk 0:00:11.6]} 44. Kg1
{[%clk 0:01:07.1]} 44... Qh1+ {[%clk 0:00:11.5]} 45. Kf2 {[%clk 0:01:07.9]}
45... Qf3+ {[%clk 0:00:13.4]} 46. Kg1 {[%clk 0:01:08.7]} 46... Ra4 {[%clk
0:00:14.1]} 47. Qe2 {[%clk 0:00:25.1]} 47... Qh1+ {[%clk 0:00:12.6]} 48. Kf2
{[%clk 0:00:26]} 48... Rxf4+ {[%clk 0:00:13.1]} 49. Kg3 {[%clk 0:00:24.2]} 49...
Qh4# {[%clk 0:00:12.7]} 0-1